bitfinex/quotes_SOLUSD_20230113
["timestamp","ask_amount","ask_price","bid_price","bid_amount"]
[1673598021150,107.6123,16.911,16.893,20.0]
[1673598021357,107.6123,16.911,16.894,10.0]
[1673598021566,107.6123,16.911,16.895,20.0]
[1673598022610,107.6123,16.911,16.896,10.0]
[1673598022929,107.6123,16.911,16.897,20.0]
[1673598023138,107.6123,16.911,16.895,20.0]
[1673598024296,107.6123,16.911,16.893,238.2319]
[1673598024297,107.6123,16.911,16.893,228.2319]
[1673598024509,37.0,16.91,16.893,228.2319]
[1673598031670,117.67165908,16.91,16.893,228.2319]
[1673598033150,117.67165908,16.91,16.888,396.6]
[1673598033355,10.0,16.909,16.888,396.6]
[1673598033566,37.0,16.908,16.888,396.6]
[1673598033785,10.0,16.907,16.888,396.6]
[1673598033982,37.0,16.906,16.888,396.6]
[1673598034180,131.62499242,16.906,16.884,232.1155]
[1673598034392,47.06127566,16.905,16.884,232.1155]
[1673598034606,37.0,16.904,16.884,232.1155]
[1673598034935,47.06127566,16.903,16.884,232.1155]
[1673598035126,37.0,16.902,16.884,232.1155]
[1673598036317,131.62499242,16.902,16.884,232.1155]
[1673598039249,114.62499242,16.902,16.884,232.1155]
[1673598039470,114.62499242,16.902,16.885,10.0]
[1673598040100,109.3167,16.91,16.886,20.0]
[1673598040427,94.62499242,16.908,16.887,10.0]
[1673598040729,47.06127566,16.907,16.887,10.0]
[1673598041131,37.0,16.906,16.887,10.0]
[1673598041562,94.62499242,16.905,16.887,10.0]
[1673598041887,17.0,16.904,16.887,10.0]
[1673598042101,17.0,16.904,16.886,20.0]
[1673598043883,111.62499242,16.904,16.884,232.1155]
[1673598044192,20.0,16.903,16.884,232.1155]
[1673598044410,17.0,16.902,16.884,232.1155]
[1673598044620,20.0,16.901,16.884,232.1155]
[1673598044813,17.0,16.9,16.884,232.1155]
[1673598045029,20.0,16.899,16.884,232.1155]
[1673598048176,20.0,16.902,16.884,232.1155]
[1673598048607,20.0,16.902,16.885,10.0]
[1673598053971,17.0,16.901,16.885,10.0]
[1673598054186,20.0,16.9,16.885,10.0]
[1673598055115,20.0,16.9,16.884,232.1155]
[1673598055980,20.0,16.9,16.885,10.0]
[1673598058396,47.06127566,16.903,16.885,10.0]
[1673598058712,47.06127566,16.909,16.887,10.0]
[1673598060277,20.0,16.908,16.887,10.0]
[1673598061557,17.0,16.907,16.887,10.0]
[1673598061775,20.0,16.906,16.887,10.0]
[1673598067764,17.0,16.905,16.887,10.0]
[1673598072692,20.0,16.906,16.887,10.0]
[1673598072904,20.0,16.908,16.887,10.0]
[1673598073122,17.0,16.907,16.887,10.0]
[1673598073430,20.0,16.906,16.887,10.0]
[1673598075430,20.0,16.906,16.886,30.0]
[1673598075646,17.0,16.905,16.886,20.0]
[1673598081636,20.0,16.906,16.887,218.66683801]
[1673598081829,20.0,16.908,16.887,218.66683801]
[1673598082164,20.0,16.908,16.889,10.0]
[1673598082695,20.0,16.908,16.891,10.0]
[1673598083096,20.0,16.908,16.89,111.0383]
[1673598083304,17.0,16.907,16.89,111.0383]
[1673598083521,20.0,16.906,16.89,111.0383]
[1673598083735,17.0,16.905,16.89,111.0383]
[1673598095621,17.0,16.905,16.886,50.46683801]
[1673598095945,69.77434233,16.905,16.886,20.0]
[1673598096336,52.77434233,16.905,16.886,30.0]
[1673598097404,52.77434233,16.905,16.887,10.0]
[1673598097617,17.0,16.904,16.887,10.0]
[1673598100881,52.77434233,16.905,16.887,10.0]
[1673598101609,20.0,16.906,16.888,30.46683801]
[1673598101852,20.0,16.909,16.888,30.46683801]
[1673598102040,20.0,16.909,16.889,10.0]
[1673598102459,20.0,16.909,16.889,40.46683801]
[1673598102670,20.0,16.909,16.89,114.8131]
[1673598102884,20.0,16.909,16.891,10.0]
[1673598106249,20.0,16.909,16.89,124.8131]
[1673598106463,17.0,16.908,16.89,124.8131]
[1673598106669,20.0,16.907,16.891,10.0]
[1673598107191,20.0,16.909,16.89,145.27993801]
[1673598107405,17.0,16.908,16.89,114.8131]
[1673598107626,20.0,16.907,16.89,114.8131]
[1673598108246,17.0,16.906,16.89,114.8131]
[1673598112550,17.0,16.906,16.885,1228.6]
[1673598112551,123.75139242,16.906,16.884,115.5338]
[1673598112745,10.0,16.904,16.884,115.5338]
[1673598112955,37.0,16.903,16.884,115.5338]
[1673598117816,20.0,16.903,16.884,115.5338]
[1673598119394,17.0,16.902,16.884,115.5338]
[1673598119610,20.0,16.901,16.884,115.5338]
[1673598119807,17.0,16.9,16.884,115.5338]
[1673598120016,20.0,16.899,16.884,115.5338]
[1673598120347,17.0,16.898,16.884,115.5338]
[1673598120659,20.0,16.897,16.884,115.5338]
[1673598123716,17.0,16.896,16.884,115.5338]
[1673598129909,17.0,16.896,16.876,588.1]
[1673598130237,17.0,16.896,16.877,20.0]
[1673598132858,17.0,16.896,16.876,118.1134]
[1673598133049,20.0,16.895,16.876,118.1134]
[1673598133478,17.0,16.894,16.876,118.1134]
[1673598133702,20.0,16.893,16.876,118.1134]
[1673598133896,17.0,16.892,16.876,118.1134]
[1673598134107,20.0,16.891,16.876,118.1134]
[1673598134316,17.0,16.89,16.876,118.1134]
[1673598134743,20.0,16.889,16.876,118.1134]
[1673598137993,52.77434233,16.895,16.877,10.0]
[1673598140017,17.0,16.894,16.877,10.0]
[1673598141175,17.0,16.894,16.878,10.0]
[1673598141791,10.0,16.917,16.879,1406.8]
[1673598142004,15.3787,16.92,16.88,20.0]
[1673598142208,5.3787,16.92,16.881,183.40783]
[1673598142434,52.48757911,16.917,16.883,10.0]
[1673598142635,52.48757911,16.917,16.885,178.2]
[1673598142952,52.48757911,16.917,16.886,20.0]
[1673598143178,52.48757911,16.917,16.887,178.2]
[1673598143404,115.7119,16.92,16.888,25.20567]
[1673598143709,168.19947911,16.92,16.889,188.2]
[1673598143912,10.0,16.933,16.889,188.2]
[1673598143913,107.37,16.928,16.89,25.20505]
[1673598144107,107.37,16.928,16.891,183.40474]
[1673598144310,52.48757911,16.923,16.892,5.20444]
[1673598144524,52.48757911,16.923,16.895,10.0]
[1673598144729,52.48757911,16.923,16.896,20.0]
[1673598144946,38.71870987,16.927,16.897,178.2]
[1673598145163,38.71870987,16.927,16.898,25.20259]
[1673598145372,61.12267106,16.948,16.898,25.20259]
[1673598145373,30.56133553,16.947,16.899,1412.00228]
[1673598145593,115.3209,16.948,16.912,10.0]
[1673598145783,135.42313267,16.95,16.913,1363.5169]
[1673598145784,38.71870987,16.943,16.913,1363.5169]
[1673598146207,48.29385937,16.942,16.913,1363.5169]
[1673598146542,48.29385937,16.942,16.914,10.0]
[1673598146755,48.29385937,16.942,16.915,1248.6]
[1673598146948,48.29385937,16.942,16.916,10.0]
[1673598147167,48.29385937,16.942,16.917,1248.6]
[1673598147579,17.0,16.941,16.918,10.0]
[1673598147786,20.0,16.94,16.919,1228.6]
[1673598148001,17.0,16.939,16.919,1228.6]
[1673598148335,20.0,16.938,16.919,1228.6]
[1673598148533,20.0,16.938,16.92,10.0]
[1673598148747,20.0,16.941,16.921,1228.6]
[1673598148953,65.58522281,16.941,16.922,10.0]
[1673598149167,113.87908218,16.941,16.922,1238.6]
[1673598150092,65.58522281,16.941,16.922,1238.6]
[1673598150302,65.58522281,16.941,16.922,1228.6]
[1673598150526,45.58522281,16.94,16.917,20.0]
[1673598150845,37.0,16.939,16.917,20.0]
[1673598151778,37.0,16.939,16.918,10.0]
[1673598155914,82.58522281,16.939,16.917,20.0]
[1673598156124,82.58522281,16.939,16.911,111.6481]
[1673598156125,82.58522281,16.939,16.912,437.06683801]
[1673598156330,44.11652629,16.938,16.912,396.6]
[1673598156648,82.58522281,16.937,16.912,396.6]
[1673598157074,45.58522281,16.936,16.912,396.6]
[1673598157285,37.0,16.935,16.912,396.6]
[1673598157809,82.58522281,16.935,16.912,396.6]
[1673598159370,131.9084991,16.935,16.912,396.6]
[1673598162108,5.20675,16.934,16.911,111.6481]
[1673598162328,37.0,16.933,16.911,111.6481]
[1673598162532,82.58522281,16.933,16.911,111.6481]
[1673598163050,65.58522281,16.933,16.911,111.6481]
[1673598163267,65.58522281,16.933,16.912,10.0]
[1673598164350,17.0,16.932,16.912,10.0]
[1673598164520,20.0,16.931,16.912,10.0]
[1673598164737,17.0,16.93,16.912,10.0]
[1673598164946,20.0,16.929,16.911,111.6481]
[1673598165158,17.0,16.928,16.911,111.6481]
[1673598165394,20.0,16.927,16.911,111.6481]
[1673598165689,17.0,16.926,16.912,10.0]
[1673598168121,17.0,16.926,16.911,111.6481]
[1673598170113,20.0,16.927,16.911,111.6481]
[1673598170314,20.0,16.932,16.914,10.0]
[1673598171053,20.0,16.932,16.912,10.0]
[1673598172323,20.0,16.932,16.914,10.0]
[1673598172518,17.0,16.931,16.914,10.0]
[1673598172830,20.0,16.93,16.914,10.0]
[1673598173034,17.0,16.929,16.914,10.0]
[1673598173247,20.0,16.928,16.914,10.0]
[1673598173458,17.0,16.927,16.914,10.0]
[1673598173672,20.0,16.926,16.914,10.0]
[1673598173880,17.0,16.925,16.914,10.0]
[1673598174735,17.0,16.925,16.912,10.0]
[1673598174954,17.0,16.925,16.911,111.6481]
[1673598175138,17.0,16.925,16.912,10.0]
[1673598177277,17.0,16.925,16.914,10.0]
[1673598178415,17.0,16.925,16.912,10.0]
[1673598178949,17.0,16.925,16.914,10.0]
[1673598183758,17.0,16.925,16.911,111.6481]
[1673598184932,17.0,16.925,16.912,10.0]
[1673598185141,17.0,16.925,16.911,111.6481]
[1673598185769,17.0,16.925,16.914,10.0]
[1673598186699,20.0,16.926,16.914,10.0]
[1673598186919,20.0,16.932,16.914,10.0]
[1673598187241,45.53400137,16.941,16.915,1309.53367602]
[1673598187434,45.53400137,16.941,16.915,1279.06683801]
[1673598187649,45.53400137,16.941,16.916,208.66683801]
[1673598187866,206.9998,16.947,16.917,20.0]
[1673598188065,206.9998,16.947,16.919,10.0]
[1673598188281,45.53400137,16.946,16.92,108.5729]
[1673598188488,20.0,16.945,16.92,108.5729]
[1673598188715,20.0,16.945,16.921,10.0]
[1673598189031,20.0,16.945,16.921,121.357]
[1673598189466,15.0,16.945,16.922,10.0]
[1673598190077,15.0,16.945,16.923,1228.6]
[1673598190290,99.1462,16.956,16.924,0.94035928]
[1673598190608,45.53400137,16.954,16.927,396.6]
[1673598190825,45.53400137,16.954,16.929,10.0]
[1673598191015,45.53400137,16.954,16.931,10.0]
[1673598191324,20.0,16.953,16.931,10.0]
[1673598193022,17.0,16.952,16.931,10.0]
[1673598193229,20.0,16.951,16.931,10.0]
[1673598193433,17.0,16.95,16.931,10.0]
[1673598193651,20.0,16.949,16.931,10.0]
[1673598195021,15.0,16.949,16.931,10.0]
[1673598195843,15.0,16.949,16.932,30.46683801]
[1673598196178,15.0,16.949,16.933,10.0]
[1673598197105,17.0,16.952,16.935,178.2]
[1673598197317,17.0,16.952,16.934,1248.6]
[1673598197318,107.2896,16.974,16.937,10.0]
[1673598197657,120.15406804,16.965,16.94,1.41515384]
[1673598197964,120.15406804,16.965,16.942,10.0]
[1673598198362,44.02985963,16.968,16.942,1238.6]
[1673598198577,135.42313267,16.991,16.943,253.87542628]
[1673598198852,5.20675,16.99,16.952,588.1]
[1673598199008,5.20675,16.99,16.953,37.29373246]
[1673598199213,5.20675,16.99,16.953,88.23267192]
[1673598199438,49.19642793,16.996,16.954,86.59117747]
[1673598199744,49.19642793,16.996,16.955,58.07408932]
[1673598199745,47.40359285,16.989,16.955,58.07408932]
[1673598199964,47.40359285,16.989,16.957,2.42215131]
[1673598200162,5.20675,16.988,16.957,22.42215131]
[1673598200379,5.20675,16.988,16.957,52.88898932]
[1673598200786,57.37025952,16.987,16.957,52.88898932]
[1673598200995,57.37025952,16.987,16.959,2.42215131]
[1673598201210,57.37025952,16.987,16.96,10.0]
[1673598201421,57.37025952,16.987,16.961,2.42215131]
[1673598201647,57.37025952,16.987,16.961,32.88898932]
[1673598201842,57.37025952,16.987,16.963,9.9217828]
[1673598202053,57.37025952,16.987,16.964,2.42215131]
[1673598202894,20.0,16.986,16.964,2.42215131]
[1673598203308,57.37025952,16.985,16.964,2.42215131]
[1673598203530,20.0,16.984,16.964,2.42215131]
[1673598203954,57.37025952,16.983,16.964,2.42215131]
[1673598204163,20.0,16.982,16.964,2.42215131]
[1673598206375,20.0,16.982,16.962,2.42215131]
[1673598206796,20.0,16.982,16.962,12.42215131]
[1673598207329,77.37025952,16.982,16.962,12.42215131]
[1673598207535,77.37025952,16.982,16.963,10.0]
[1673598207742,77.37025952,16.982,16.964,2.42215131]
[1673598207951,49.19642793,16.988,16.964,2.42215131]
[1673598208171,40.8514104,16.998,16.964,22.42215131]
[1673598208376,57.37025952,16.988,16.965,10.0]
[1673598208586,57.37025952,16.988,16.966,20.0]
[1673598208909,57.37025952,16.988,16.967,10.0]
[1673598209310,20.0,16.987,16.967,10.0]
[1673598210153,20.0,16.987,16.965,120.6048]
[1673598210368,77.37025952,16.987,16.965,10.0]
[1673598210575,126.56668745,16.987,16.964,0.73084984]
[1673598211847,126.56668745,16.987,16.964,10.0]
[1673598215739,20.0,16.987,16.966,10.0]
[1673598216147,20.0,16.99,16.966,10.0]
[1673598216568,57.37025952,16.989,16.966,10.0]
[1673598216783,20.0,16.988,16.966,10.0]
[1673598217218,57.37025952,16.987,16.966,10.0]
[1673598218691,57.37025952,16.987,16.966,40.46683801]
[1673598218882,49.19642793,16.994,16.967,10.0]
[1673598219218,77.37025952,16.993,16.967,10.0]
[1673598219411,77.37025952,16.993,16.967,40.46683801]
[1673598219621,57.37025952,16.992,16.968,10.0]
[1673598219833,20.0,16.991,16.968,10.0]
[1673598220270,77.37025952,16.991,16.97,10.0]
[1673598220461,20.0,16.991,16.97,10.0]
[1673598220793,20.0,16.997,16.97,10.0]
[1673598221511,69.74359285,16.997,16.97,10.0]
[1673598221717,69.74359285,16.997,16.969,116.0566]
[1673598221934,15.20675,16.996,16.969,116.0566]
[1673598222168,25.20675,16.995,16.969,116.0566]
[1673598222364,74.95034285,16.995,16.969,116.0566]
[1673598222557,10.0,16.993,16.969,116.0566]
[1673598222767,37.0,16.992,16.969,116.0566]
[1673598222990,86.74359285,16.992,16.969,116.0566]
[1673598223733,49.74359285,16.991,16.969,116.0566]
[1673598223946,37.0,16.99,16.969,116.0566]
[1673598224573,20.0,16.99,16.969,116.0566]
[1673598225399,20.0,16.99,16.97,10.0]
[1673598225840,17.0,16.989,16.97,10.0]
[1673598226026,20.0,16.988,16.97,10.0]
[1673598226673,20.0,16.99,16.97,10.0]
[1673598227340,49.74359285,16.996,16.97,10.0]
[1673598227550,20.0,16.995,16.97,10.0]
[1673598228379,69.74359285,16.995,16.97,10.0]
[1673598229873,17.0,16.994,16.97,10.0]
[1673598230072,20.0,16.993,16.97,10.0]
[1673598230267,17.0,16.992,16.97,10.0]
[1673598230478,20.0,16.991,16.97,10.0]
[1673598231620,17.0,16.99,16.97,10.0]
[1673598232048,20.0,16.989,16.97,10.0]
[1673598233640,20.0,16.996,16.97,10.0]
[1673598233855,17.0,16.995,16.97,10.0]
[1673598234062,20.0,16.994,16.97,10.0]
[1673598234274,17.0,16.993,16.97,10.0]
[1673598234797,20.0,16.992,16.969,116.0566]
[1673598234989,17.0,16.991,16.969,116.0566]
[1673598235203,20.0,16.99,16.969,116.0566]
[1673598235412,17.0,16.989,16.969,116.0566]
[1673598235624,20.0,16.988,16.969,116.0566]
[1673598235835,17.0,16.987,16.969,116.0566]
[1673598238262,17.0,16.987,16.97,10.0]
[1673598241304,17.0,16.987,16.969,116.0566]
[1673598241838,66.74359285,16.987,16.965,115.0965]
[1673598242157,69.74914641,16.986,16.965,115.0965]
[1673598242369,17.0,16.985,16.965,115.0965]
[1673598242578,20.0,16.984,16.965,115.0965]
[1673598242790,17.0,16.983,16.965,115.0965]
[1673598242997,20.0,16.982,16.965,115.0965]
[1673598243404,20.0,16.982,16.966,10.0]
[1673598244238,20.0,16.984,16.966,10.0]
[1673598245317,20.0,16.988,16.966,40.46683801]
[1673598245514,20.0,16.988,16.967,10.0]
[1673598245829,20.0,16.988,16.967,218.66683801]
[1673598246048,20.0,16.995,16.967,218.66683801]
[1673598246259,20.0,16.995,16.968,10.0]
[1673598246448,49.57905618,16.994,16.968,10.0]
[1673598246653,49.57905618,16.994,16.968,1238.6]
[1673598246874,30.8514104,16.998,16.97,2.13057935]
[1673598247073,30.8514104,16.998,16.972,2.2924806]
[1673598247284,30.8514104,16.998,16.975,2.49102113]
[1673598247495,30.8514104,16.998,16.977,2.49102113]
[1673598248341,30.8514104,16.998,16.977,12.49102113]
[1673598249297,0.0014104,16.998,16.978,10.0]
[1673598249507,0.0014104,16.998,16.979,27.66879113]
[1673598249736,0.0014104,16.998,16.98,5.17746]
[1673598249953,0.0014104,16.998,16.982,10.0]
[1673598250243,0.0014104,16.998,16.983,22.49102113]
[1673598250442,0.0014104,16.998,16.985,2.49102113]
[1673598250656,0.0014104,16.998,16.985,22.49102113]
[1673598250975,150.11273553,17.037,16.988,2.49102113]
[1673598251298,10.0,17.035,16.991,10.0]
[1673598251496,49.7836916,17.034,16.992,7.66483113]
[1673598251715,118.5514,17.028,16.992,7.66483113]
[1673598251909,65.14927101,17.027,16.992,7.66483113]
[1673598252116,25.20675,17.026,16.992,2.49102113]
[1673598252330,124.93296261,17.026,16.992,2.49102113]
[1673598252559,20.0,17.026,16.992,2.49102113]
[1673598252876,20.0,17.026,16.993,40.46683801]
[1673598253064,20.0,17.026,16.995,2.49102113]
[1673598253277,20.0,17.026,16.995,12.49102113]
[1673598253696,116.8938,17.027,16.995,42.95785914]
[1673598253905,116.8938,17.027,16.997,2.49102113]
[1673598254121,116.8938,17.027,16.999,2.49102113]
[1673598254325,116.8938,17.027,16.999,12.49102113]
[1673598255187,37.0,17.026,16.999,12.49102113]
[1673598255392,37.0,17.026,16.999,2.49102113]
[1673598255594,120.13971261,17.025,16.999,2.49102113]
[1673598255805,25.20675,17.024,16.993,2.49102113]
[1673598256018,124.93296261,17.024,16.993,42.95785914]
[1673598256225,124.93296261,17.024,16.994,10.0]
[1673598256428,55.14927101,17.023,16.995,2.49102113]
[1673598256645,116.8938,17.027,16.996,10.0]
[1673598256852,116.8938,17.027,16.997,2.49102113]
[1673598257062,49.7836916,17.029,16.998,10.0]
[1673598257287,55.14927101,17.03,17.0,10.0]
[1673598257498,115.7262,17.035,17.002,178.2]
[1673598257819,115.7262,17.035,17.005,2.49102113]
[1673598258006,115.7262,17.035,17.006,10.0]
[1673598258215,49.7836916,17.041,17.008,10.0]
[1673598258429,25.7835697,17.042,17.01,2.49102113]
[1673598258650,25.7835697,17.042,17.012,2.49102113]
[1673598258853,25.7835697,17.042,17.012,7.65875113]
[1673598259061,25.7835697,17.042,17.014,2.49102113]
[1673598259276,25.7835697,17.042,17.014,12.49102113]
[1673598259491,25.7835697,17.042,17.016,2.49102113]
[1673598259903,25.7835697,17.042,17.016,7.65753113]
[1673598260109,25.7835697,17.042,17.018,12.49102113]
[1673598261280,25.7835697,17.042,17.018,2.49102113]
[1673598261594,25.7835697,17.042,17.017,2.49102113]
[1673598261792,25.7835697,17.042,17.015,2.49102113]
[1673598262420,17.0,17.041,17.015,2.49102113]
[1673598262852,25.7835697,17.042,17.015,2.49102113]
[1673598263163,20.0,17.041,17.015,2.49102113]
[1673598264108,20.0,17.041,17.015,32.95785914]
[1673598264438,20.0,17.041,17.016,10.0]
[1673598264775,20.0,17.041,17.018,10.0]
[1673598264973,20.0,17.041,17.019,2.49102113]
[1673598265994,17.0,17.04,17.019,2.49102113]
[1673598266205,20.0,17.039,17.017,2.49102113]
[1673598266440,17.0,17.038,17.017,2.49102113]
[1673598266936,17.0,17.038,17.015,2.49102113]
[1673598267149,20.0,17.037,17.015,2.49102113]
[1673598267480,80.93284071,17.042,17.015,2.49102113]
[1673598267795,25.7835697,17.042,17.017,12.49102113]
[1673598268002,25.7835697,17.042,17.017,17.65723113]
[1673598268195,25.7835697,17.042,17.019,2.49102113]
[1673598268624,25.7835697,17.042,17.019,117.42972113]
[1673598269043,20.0,17.041,17.02,10.0]
[1673598269270,20.0,17.041,17.021,2.49102113]
[1673598269671,25.7835697,17.042,17.021,2.49102113]
[1673598269887,25.7835697,17.042,17.023,10.0]
[1673598270092,25.7835697,17.042,17.024,22.49102113]
[1673598270318,25.7835697,17.042,17.024,52.95785914]
[1673598270517,25.7835697,17.042,17.024,22.49102113]
[1673598271063,25.7835697,17.042,17.025,10.0]
[1673598271248,25.7835697,17.042,17.026,2.49102113]
[1673598272202,25.7835697,17.042,17.026,7.65450113]
[1673598272416,25.7835697,17.042,17.027,5.16317]
[1673598272735,25.7835697,17.042,17.028,2.49102113]
[1673598272956,25.7835697,17.042,17.028,7.65389113]
[1673598273166,25.7835697,17.042,17.029,10.0]
[1673598276515,25.7835697,17.042,17.028,2.49102113]
[1673598276735,25.7835697,17.042,17.027,2.49102113]
[1673598277551,25.7835697,17.042,17.027,49.61375162]
[1673598277761,25.7835697,17.042,17.027,2.49102113]
[1673598278817,25.7835697,17.042,17.026,2.49102113]
[1673598279038,20.0,17.041,17.022,2.49102113]
[1673598279244,20.0,17.041,17.021,2.49102113]
[1673598279860,20.0,17.041,17.021,12.49102113]
[1673598280610,20.0,17.041,17.021,2.49102113]
[1673598281349,20.0,17.041,17.021,12.49102113]
[1673598281750,20.0,17.041,17.022,10.0]
[1673598281979,25.7835697,17.042,17.023,2.49102113]
[1673598282179,25.7835697,17.042,17.024,5.16408]
[1673598282394,25.7835697,17.042,17.025,180.69102113]
[1673598282602,25.7835697,17.042,17.025,2.49102113]
[1673598283022,25.7835697,17.042,17.025,12.49102113]
[1673598283670,25.7835697,17.042,17.026,10.0]
[1673598283864,25.7835697,17.042,17.027,2.49102113]
[1673598287870,25.7835697,17.042,17.028,183.36287]
[1673598288078,25.7835697,17.042,17.029,10.0]
[1673598288295,25.7835697,17.042,17.029,218.66683801]
[1673598288605,25.7835697,17.042,17.028,5.16287]
[1673598288819,25.7835697,17.042,17.027,11.0]
[1673598291335,25.7835697,17.042,17.027,16.16317]
[1673598291540,25.7835697,17.042,17.03,10.0]
[1673598291859,25.7835697,17.042,17.032,10.0]
[1673598292071,25.7835697,17.042,17.033,20.0]
[1673598292486,25.7835697,17.042,17.034,10.0]
[1673598293328,119.3858,17.064,17.034,10.0]
[1673598293536,119.3858,17.064,17.037,10.0]
[1673598293537,20.0,17.063,17.037,10.0]
[1673598293748,119.3858,17.064,17.04,1.69451172]
[1673598294167,10.0,17.063,17.04,11.69451172]
[1673598294590,10.9461,17.073,17.042,180.05990139]
[1673598294801,10.0,17.075,17.044,11.85990139]
[1673598295016,10.0,17.075,17.046,1.85990139]
[1673598295218,10.0,17.075,17.046,195.21732139]
[1673598295428,118.2871,17.074,17.047,10.0]
[1673598295634,118.2871,17.074,17.048,1.85990139]
[1673598295846,118.2871,17.074,17.049,11.85990139]
[1673598296073,118.2871,17.074,17.05,10.0]
[1673598296275,118.2871,17.074,17.051,183.35591]
[1673598296496,118.2871,17.074,17.052,15.1556]
[1673598296694,133.7093288,17.076,17.054,178.2]
[1673598296907,133.7093288,17.076,17.055,5.1547]
[1673598297119,133.7093288,17.076,17.056,10.0]
[1673598297335,133.7093288,17.076,17.055,5.1547]
[1673598297648,227.55891408,17.076,17.045,1.30542889]
[1673598297854,10.0,17.068,17.045,1.30542889]
[1673598298047,115.1675,17.075,17.045,1.30542889]
[1673598298263,115.1675,17.075,17.046,5.15742]
[1673598298487,115.1675,17.075,17.047,1.37158306]
[1673598298697,115.1675,17.075,17.047,110.40348306]
[1673598298886,115.1675,17.075,17.048,10.0]
[1673598299098,115.1675,17.075,17.049,1.41215897]
[1673598299307,10.0,17.074,17.048,11.41215897]
[1673598299646,20.0,17.068,17.048,1.41215897]
[1673598299853,20.0,17.068,17.045,1.41215897]
[1673598301307,20.0,17.068,17.046,117.9686]
[1673598301637,20.0,17.068,17.047,1.41215897]
[1673598301958,20.0,17.068,17.043,1.41215897]
[1673598302149,20.0,17.068,17.043,11.41215897]
[1673598302354,20.0,17.068,17.043,41.87899698]
[1673598302575,20.0,17.068,17.043,11.41215897]
[1673598302779,20.0,17.068,17.045,1.41215897]
[1673598303520,20.0,17.068,17.043,1.41215897]
[1673598303737,17.0,17.067,17.04,1.41215897]
[1673598303926,20.0,17.066,17.039,1.41215897]
[1673598304142,17.0,17.065,17.039,1.41215897]
[1673598304353,20.0,17.064,17.039,1.41215897]
[1673598304562,17.0,17.063,17.039,1.41215897]
[1673598304797,17.0,17.063,17.038,1.41215897]
[1673598305001,10.0,17.061,17.036,1.41215897]
[1673598305213,20.0,17.06,17.036,11.41215897]
[1673598305634,20.0,17.062,17.036,11.41215897]
[1673598305838,119.7475,17.065,17.037,1238.6]
[1673598305839,20.0,17.063,17.037,1238.6]
[1673598306047,20.0,17.064,17.038,1.41215897]
[1673598306257,20.0,17.064,17.039,188.2]
[1673598306468,20.0,17.064,17.04,1.41215897]
[1673598306672,20.0,17.064,17.04,11.41215897]
[1673598307319,20.0,17.064,17.04,1240.01215897]
[1673598307630,20.0,17.064,17.041,10.0]
[1673598307947,20.0,17.064,17.042,0.64873971]
[1673598308360,20.0,17.064,17.042,10.0]
[1673598308561,20.0,17.064,17.043,0.64498895]
[1673598308774,10.0,17.08,17.044,5.15802]
[1673598308989,10.0,17.08,17.045,179.2838833]
[1673598309199,10.0,17.08,17.045,240.21755932]
[1673598309411,10.0,17.08,17.046,10.0]
[1673598309616,115.5179,17.075,17.047,1.0838833]
[1673598309943,115.5179,17.075,17.047,11.0838833]
[1673598310368,10.0,17.088,17.049,178.2]
[1673598310683,115.5179,17.081,17.051,10.0]